fUST/lending_fUST_20250525
["ID","MTS","AMOUNT","RATE_DAILY","PERIOD"]
[362208629,1748103042561,-500.0,0.00019373,2]
[362208630,1748103042572,-500.0,0.00019373,2]
[362208631,1748103042677,-504.96358605,0.00019373,2]
[362208632,1748103042688,-275.64695519,0.00019383,2]
[362208633,1748103042697,-500.0,0.00019394,2]
[362208634,1748103042707,-474.53,0.00019397,2]
[362208635,1748103042716,-430.0,0.00019397,2]
[362208636,1748103042725,-430.0,0.00019397,2]
[362208637,1748103042734,-430.0,0.00019397,2]
[362208638,1748103042743,-1052.17,0.00019397,2]
[362208639,1748103042752,-430.0,0.00019397,2]
[362208640,1748103042762,-430.0,0.00019397,2]
[362208641,1748103042772,-689.57,0.00019397,2]
[362208642,1748103042781,-430.0,0.00019397,2]
[362208643,1748103042791,-163.33902437,0.00019397,2]
[362208644,1748103042800,-430.0,0.00019397,2]
[362208645,1748103042809,-654.77,0.00019397,2]
[362208646,1748103042819,-922.77,0.00019397,2]
[362208647,1748103042828,-430.0,0.00019397,2]
[362208648,1748103042838,-459.81,0.00019397,2]
[362208649,1748103042847,-477.73,0.00019397,2]
[362208650,1748103042857,-430.0,0.00019397,2]
[362208651,1748103042867,-430.0,0.00019397,2]
[362208652,1748103042877,-495.76,0.00019397,2]
[362208653,1748103042886,-430.0,0.00019397,2]
[362208654,1748103042896,-430.0,0.00019397,2]
[362208655,1748103042905,-478.49,0.00019397,2]
[362208656,1748103042915,-440.75,0.00019397,2]
[362208657,1748103042924,-430.98,0.00019397,2]
[362208658,1748103042934,-3416.7,0.00019397,2]
[362208659,1748103042944,-430.0,0.00019397,2]
[362208660,1748103042953,-483.98,0.00019397,2]
[362208661,1748103042963,-430.0,0.00019397,2]
[362208662,1748103042973,-430.0,0.00019397,2]
[362208663,1748103042995,-430.0,0.00019397,2]
[362208664,1748103043010,-430.0,0.00019397,2]
[362208665,1748103043019,-430.0,0.00019397,2]
[362208666,1748103043029,-587.69,0.00019397,2]
[362208667,1748103043038,-747.04,0.00019397,2]
[362208668,1748103043047,-430.0,0.00019397,2]
[362208670,1748103043057,-464.69,0.00019397,2]
[362208672,1748103043066,-431.85,0.00019397,2]
[362208673,1748103043076,-3110.04,0.00019397,2]
[362208674,1748103043085,-430.0,0.00019397,2]
[362208675,1748103043094,-890.63,0.00019397,2]
[362208676,1748103043103,-430.0,0.00019397,2]
[362208677,1748103043113,-992.55,0.00019397,2]
[362208678,1748103043122,-996.99,0.00019397,2]
[362208679,1748103043134,-430.0,0.00019397,2]
[362208680,1748103043144,-430.0,0.00019397,2]
[362208681,1748103043154,-430.0,0.00019397,2]
[362208682,1748103043164,-430.0,0.00019397,2]
[362208683,1748103043174,-430.0,0.00019397,2]
[362208684,1748103043183,-430.0,0.00019397,2]
[362208685,1748103043192,-525.13,0.00019397,2]
[362208686,1748103043201,-1037.53,0.00019397,2]
[362208687,1748103043212,-1114.5,0.00019397,2]
[362208688,1748103043222,-611.52,0.00019397,2]
[362208689,1748103043231,-500.0,0.00019407,2]
[362208690,1748103043241,-500.0,0.00019408,2]
[362208691,1748103043250,-500.0,0.0001942,2]
[362208692,1748103043261,-500.0,0.0001942,2]
[362208693,1748103043271,-500.84890628,0.0001942,2]
[362208694,1748103043281,-500.0,0.0001942,2]
[362208695,1748103043290,-501.44768991,0.0001942,2]
[362208696,1748103043300,-500.0,0.0001942,2]
[362208697,1748103043310,-500.0,0.0001942,2]
[362208698,1748103043320,-501.53825745,0.0001942,2]
[362208699,1748103043330,-500.0,0.0001942,2]
[362208700,1748103043339,-460.97481919,0.0001942,2]
[362208701,1748103043349,-500.0,0.0001942,2]
[362208702,1748103043358,-500.0,0.0001942,2]
[362208703,1748103043367,-500.0,0.0001942,2]
[362208704,1748103043377,-500.0,0.0001942,2]
[362208705,1748103043386,-505.67096782,0.0001942,2]
[362208706,1748103043395,-500.0,0.00019423,2]
[362208707,1748103043404,-500.0,0.00019423,2]
[362208708,1748103043413,-474.53,0.00019424,2]
[362208709,1748103043423,-430.0,0.00019424,2]
[362208710,1748103043432,-430.0,0.00019424,2]
[362208711,1748103043442,-430.0,0.00019424,2]
[362208712,1748103043451,-179.112433,0.00019424,2]
[362208713,1748103043460,-1052.17,0.00019424,2]
[362208714,1748103043470,-430.0,0.00019424,2]
[362208715,1748103043479,-430.0,0.00019424,2]
[362208716,1748103043491,-689.57,0.00019424,2]
[362208717,1748103043500,-430.0,0.00019424,2]
[362208718,1748103043510,-430.0,0.00019424,2]
[362208719,1748103043519,-654.77,0.00019424,2]
[362208720,1748103043529,-922.77,0.00019424,2]
[362208721,1748103043538,-430.0,0.00019424,2]
[362208722,1748103043548,-459.81,0.00019424,2]
[362208723,1748103043558,-477.73,0.00019424,2]
[362208724,1748103043567,-430.0,0.00019424,2]
[362208725,1748103043577,-430.0,0.00019424,2]
[362208726,1748103043586,-430.0,0.00019424,2]
[362208727,1748103043596,-430.0,0.00019424,2]
[362208728,1748103043606,-478.49,0.00019424,2]
[362208729,1748103043616,-440.75,0.00019424,2]
[362208730,1748103043625,-430.98,0.00019424,2]
[362208731,1748103043635,-3416.7,0.00019424,2]
[362208732,1748103043644,-430.0,0.00019424,2]
[362208733,1748103043653,-483.98,0.00019424,2]
[362208734,1748103043663,-430.0,0.00019424,2]
[362208735,1748103043673,-430.0,0.00019424,2]
[362208736,1748103043682,-437.76,0.00019424,2]
[362208737,1748103043692,-430.0,0.00019424,2]
[362208738,1748103043702,-587.69,0.00019424,2]
[362208739,1748103043711,-747.04,0.00019424,2]
[362208740,1748103043720,-430.0,0.00019424,2]
[362208741,1748103043731,-464.69,0.00019424,2]
[362208742,1748103043741,-431.85,0.00019424,2]
[362208743,1748103043751,-3110.04,0.00019424,2]
[362208744,1748103043760,-392.36,0.00019424,2]
[362208745,1748103043770,-890.63,0.00019424,2]
[362208746,1748103043780,-430.0,0.00019424,2]
[362208747,1748103043790,-992.55,0.00019424,2]
[362208748,1748103043799,-996.99,0.00019424,2]
[362208749,1748103043809,-430.0,0.00019424,2]
[362208750,1748103043819,-430.0,0.00019424,2]
[362208751,1748103043828,-430.0,0.00019424,2]
[362208752,1748103043838,-430.0,0.00019424,2]
[362208753,1748103043847,-430.0,0.00019424,2]
[362208754,1748103043856,-525.13,0.00019424,2]
[362208755,1748103043866,-1037.53,0.00019424,2]
[362208756,1748103043875,-1114.5,0.00019424,2]
[362208757,1748103043885,-611.52,0.00019424,2]
[362208758,1748103043894,-500.0,0.00019432,2]
[362208759,1748103043903,-208.9233777,0.00019432,2]
[362208760,1748103043912,-500.0,0.00019447,2]
[362208761,1748103043922,-500.0,0.00019447,2]
[362208762,1748103043931,-474.53,0.00019452,2]
[362208763,1748103043940,-430.0,0.00019452,2]
[362208764,1748103043949,-532.72,0.00019452,2]
[362208765,1748103043958,-430.0,0.00019452,2]
[362208766,1748103043968,-1052.17,0.00019452,2]
[362208767,1748103043978,-430.0,0.00019452,2]
[362208768,1748103043988,-430.0,0.00019452,2]
[362208769,1748103043998,-689.57,0.00019452,2]
[362208770,1748103044008,-430.0,0.00019452,2]
[362208771,1748103044017,-430.0,0.00019452,2]
[362208772,1748103044028,-654.77,0.00019452,2]
[362208773,1748103044037,-922.77,0.00019452,2]
[362208774,1748103044047,-430.0,0.00019452,2]
[362208775,1748103044056,-459.81,0.00019452,2]
[362208776,1748103044066,-477.73,0.00019452,2]
[362208777,1748103044075,-430.0,0.00019452,2]
[362208778,1748103044084,-430.0,0.00019452,2]
[362208779,1748103044094,-430.0,0.00019452,2]
[362208780,1748103044103,-430.0,0.00019452,2]
[362208781,1748103044114,-478.49,0.00019452,2]
[362208782,1748103044123,-440.75,0.00019452,2]
[362208783,1748103044134,-430.98,0.00019452,2]
[362208784,1748103044144,-3416.7,0.00019452,2]
[362208785,1748103044154,-430.0,0.00019452,2]
[362208786,1748103044163,-483.98,0.00019452,2]
[362208787,1748103044173,-430.0,0.00019452,2]
[362208788,1748103044183,-430.0,0.00019452,2]
[362208789,1748103044192,-430.0,0.00019452,2]
[362208790,1748103044201,-587.69,0.00019452,2]
[362208791,1748103044211,-747.04,0.00019452,2]
[362208792,1748103044220,-430.0,0.00019452,2]
[362208793,1748103044231,-464.69,0.00019452,2]
[362208794,1748103044241,-431.85,0.00019452,2]
[362208795,1748103044251,-3110.04,0.00019452,2]
[362208796,1748103044260,-890.63,0.00019452,2]
[362208797,1748103044270,-430.0,0.00019452,2]
[362208798,1748103044280,-992.55,0.00019452,2]
[362208799,1748103044290,-996.99,0.00019452,2]
[362208800,1748103044300,-430.0,0.00019452,2]
[362208801,1748103044310,-321.12,0.00019452,2]
[362208802,1748103044320,-279.84,0.00019452,2]
[362208803,1748103044329,-430.0,0.00019452,2]
[362208804,1748103044339,-430.0,0.00019452,2]
[362208805,1748103044348,-525.13,0.00019452,2]
[362208806,1748103044358,-1037.53,0.00019452,2]
[362208807,1748103044367,-1114.5,0.00019452,2]
[362208808,1748103044376,-611.52,0.00019452,2]
[362208809,1748103044386,-165.78476889,0.00019461,2]
[362208810,1748103044395,-474.53,0.00019479,2]
[362208811,1748103044405,-566.64,0.00019479,2]
[362208812,1748103044414,-430.0,0.00019479,2]
[362208813,1748103044423,-1052.17,0.00019479,2]
[362208814,1748103044433,-430.0,0.00019479,2]
[362208815,1748103044443,-430.0,0.00019479,2]
[362208816,1748103044453,-689.57,0.00019479,2]
[362208817,1748103044463,-430.0,0.00019479,2]
[362208818,1748103044473,-430.0,0.00019479,2]
[362208819,1748103044483,-654.77,0.00019479,2]
[362208820,1748103044493,-922.77,0.00019479,2]
[362208822,1748103044586,-430.0,0.00019479,2]
[362208823,1748103044596,-459.81,0.00019479,2]
[362208824,1748103044606,-477.73,0.00019479,2]
[362208825,1748103044616,-430.0,0.00019479,2]
[362208826,1748103044625,-430.0,0.00019479,2]
[362208827,1748103044635,-430.0,0.00019479,2]
[362208828,1748103044645,-430.0,0.00019479,2]
[362208829,1748103044655,-478.49,0.00019479,2]
[362208830,1748103044664,-440.75,0.00019479,2]
[362208831,1748103044674,-430.98,0.00019479,2]
[362208832,1748103044683,-3416.7,0.00019479,2]
[362208833,1748103044694,-430.0,0.00019479,2]
[362208835,1748103044703,-483.98,0.00019479,2]
[362208836,1748103044713,-430.0,0.00019479,2]
[362208837,1748103044722,-472.16,0.00019479,2]
[362208838,1748103044732,-430.0,0.00019479,2]
[362208839,1748103044741,-587.69,0.00019479,2]
[362208840,1748103044751,-747.04,0.00019479,2]
[362208841,1748103044760,-430.0,0.00019479,2]
[362208842,1748103044771,-464.69,0.00019479,2]
[362208843,1748103044780,-431.85,0.00019479,2]
[362208844,1748103044790,-3110.04,0.00019479,2]
[362208845,1748103044799,-890.63,0.00019479,2]
[362208846,1748103044811,-430.0,0.00019479,2]
[362208847,1748103044821,-992.55,0.00019479,2]
[362208848,1748103044831,-996.99,0.00019479,2]
[362208849,1748103044841,-430.0,0.00019479,2]
[362208850,1748103044851,-430.0,0.00019479,2]
[362208851,1748103044860,-430.0,0.00019479,2]
[362208852,1748103044869,-525.13,0.00019479,2]
[362208853,1748103044879,-1037.53,0.00019479,2]
[362208854,1748103044888,-1114.5,0.00019479,2]
[362208855,1748103044899,-611.52,0.00019479,2]
[362208856,1748103044909,-474.53,0.00019506,2]
[362208857,1748103044918,-430.0,0.00019506,2]
[362208858,1748103044928,-1052.17,0.00019506,2]
[362208859,1748103044938,-430.0,0.00019506,2]
[362208860,1748103044948,-430.0,0.00019506,2]
[362208861,1748103044958,-689.57,0.00019506,2]
[362208862,1748103044968,-430.0,0.00019506,2]
[362208863,1748103044978,-430.0,0.00019506,2]
[362208864,1748103044987,-654.77,0.00019506,2]
[362208865,1748103044997,-922.77,0.00019506,2]
[362208866,1748103045007,-430.0,0.00019506,2]
[362208867,1748103045016,-459.81,0.00019506,2]
[362208868,1748103045026,-477.73,0.00019506,2]
[362208870,1748103045035,-430.0,0.00019506,2]
[362208872,1748103045045,-430.0,0.00019506,2]
[362208874,1748103045055,-430.0,0.00019506,2]
[362208876,1748103045065,-328.88974595,0.00019506,2]
[362208892,1748103045215,-101.11025405,0.00019506,2]
[362208894,1748103045224,-478.49,0.00019506,2]
[362208896,1748103045234,-440.75,0.00019506,2]
[362208897,1748103045243,-430.98,0.00019506,2]
[362208898,1748103045253,-3416.7,0.00019506,2]
[362208899,1748103045263,-430.0,0.00019506,2]
[362208900,1748103045272,-483.98,0.00019506,2]
[362208901,1748103045282,-215.04,0.00019506,2]
[362208902,1748103045292,-430.0,0.00019506,2]
[362208903,1748103045303,-587.69,0.00019506,2]
[362208904,1748103045313,-747.04,0.00019506,2]
[362208905,1748103045322,-430.0,0.00019506,2]
[362208906,1748103045332,-464.69,0.00019506,2]
[362208907,1748103045341,-431.85,0.00019506,2]
[362208908,1748103045351,-3110.04,0.00019506,2]
[362208909,1748103045360,-890.63,0.00019506,2]
[362208910,1748103045370,-430.0,0.00019506,2]
[362208911,1748103045379,-992.55,0.00019506,2]
[362208912,1748103045389,-996.99,0.00019506,2]
[362208913,1748103045399,-394.8,0.00019506,2]
[362208914,1748103045408,-430.0,0.00019506,2]
[362208915,1748103045418,-430.0,0.00019506,2]
[362208916,1748103045428,-525.13,0.00019506,2]
[362208917,1748103045438,-1037.53,0.00019506,2]
[362208918,1748103045447,-1114.5,0.00019506,2]
[362208919,1748103045457,-611.52,0.00019506,2]
[362208920,1748103045466,-474.53,0.00019534,2]
[362208921,1748103045476,-430.0,0.00019534,2]
[362208922,1748103045485,-1052.17,0.00019534,2]
[362208923,1748103045495,-430.0,0.00019534,2]
[362208924,1748103045505,-430.0,0.00019534,2]
[362208925,1748103045515,-689.57,0.00019534,2]
[362208926,1748103045525,-430.0,0.00019534,2]
[362208927,1748103045539,-430.0,0.00019534,2]
[362208928,1748103045551,-654.77,0.00019534,2]
[362208929,1748103045564,-922.77,0.00019534,2]
[362208930,1748103045581,-430.0,0.00019534,2]
[362208931,1748103045590,-459.81,0.00019534,2]
[362208932,1748103045599,-477.73,0.00019534,2]
[362208933,1748103045609,-430.0,0.00019534,2]
[362208934,1748103045618,-430.0,0.00019534,2]
[362208935,1748103045627,-430.0,0.00019534,2]
[362208936,1748103045637,-430.0,0.00019534,2]
[362208937,1748103045647,-478.49,0.00019534,2]
[362208938,1748103045657,-440.75,0.00019534,2]
[362208939,1748103045667,-430.98,0.00019534,2]
[362208940,1748103045677,-3416.7,0.00019534,2]
[362208941,1748103045688,-430.0,0.00019534,2]
[362208943,1748103045698,-483.98,0.00019534,2]
[362208945,1748103045708,-458.8,0.00019534,2]
[362208947,1748103045718,-587.69,0.00019534,2]
[362208948,1748103045728,-747.04,0.00019534,2]
[362208949,1748103045738,-430.0,0.00019534,2]
[362208950,1748103045748,-464.69,0.00019534,2]
[362208951,1748103045759,-431.85,0.00019534,2]
[362208952,1748103045770,-3110.04,0.00019534,2]
[362208953,1748103045780,-890.63,0.00019534,2]
[362208954,1748103045791,-430.0,0.00019534,2]
[362208955,1748103045802,-992.55,0.00019534,2]
[362208956,1748103045812,-996.99,0.00019534,2]
[362208957,1748103045823,-430.0,0.00019534,2]
[362208958,1748103045834,-430.0,0.00019534,2]
[362208959,1748103045843,-525.13,0.00019534,2]
[362208960,1748103045855,-1037.53,0.00019534,2]
[362208961,1748103045866,-1114.5,0.00019534,2]
[362208962,1748103045876,-611.52,0.00019534,2]
[362208963,1748103045885,-474.53,0.00019561,2]
[362208964,1748103045895,-430.0,0.00019561,2]
[362208965,1748103045905,-1052.17,0.00019561,2]
[362208966,1748103045915,-430.0,0.00019561,2]
[362208967,1748103045926,-430.0,0.00019561,2]
[362208968,1748103045936,-689.57,0.00019561,2]
[362208969,1748103045946,-403.28,0.00019561,2]
[362208970,1748103045955,-430.0,0.00019561,2]
[362208971,1748103045965,-654.77,0.00019561,2]
[362208972,1748103045974,-922.77,0.00019561,2]
[362208973,1748103045984,-467.15,0.00019561,2]
[362208974,1748103045993,-459.81,0.00019561,2]
[362208975,1748103046003,-477.73,0.00019561,2]
[362208976,1748103046013,-430.0,0.00019561,2]
[362208977,1748103046022,-430.0,0.00019561,2]
[362208978,1748103046032,-430.0,0.00019561,2]
[362208979,1748103046042,-150.8,0.00019561,2]
[362208980,1748103046051,-478.49,0.00019561,2]
[362208981,1748103046060,-440.75,0.00019561,2]
[362208982,1748103046070,-430.98,0.00019561,2]
[362208983,1748103046081,-3416.7,0.00019561,2]
[362208984,1748103046092,-430.0,0.00019561,2]
[362208986,1748103046102,-483.98,0.00019561,2]
[362208987,1748103046113,-587.69,0.00019561,2]
[362208988,1748103046124,-747.04,0.00019561,2]
[362208989,1748103046139,-430.0,0.00019561,2]
[362208990,1748103046149,-464.69,0.00019561,2]
[362208991,1748103046241,-431.85,0.00019561,2]
[362208992,1748103046251,-3110.04,0.00019561,2]
[362208993,1748103046260,-890.63,0.00019561,2]
[362208994,1748103046270,-430.0,0.00019561,2]
[362208995,1748103046279,-992.55,0.00019561,2]
[362208996,1748103046289,-996.99,0.00019561,2]
[362208997,1748103046298,-430.0,0.00019561,2]
[362208998,1748103046308,-430.0,0.00019561,2]
[362208999,1748103046317,-525.13,0.00019561,2]
[362209000,1748103046327,-1037.53,0.00019561,2]
[362209001,1748103046336,-1114.5,0.00019561,2]
[362209002,1748103046345,-611.52,0.00019561,2]
[362209003,1748103046355,-474.53,0.00019589,2]
[362209004,1748103046364,-382.86,0.00019589,2]
[362209005,1748103046373,-1052.17,0.00019589,2]
[362209006,1748103046382,-430.0,0.00019589,2]
[362209007,1748103046392,-430.0,0.00019589,2]
[362209008,1748103046401,-689.57,0.00019589,2]
[362209009,1748103046411,-430.0,0.00019589,2]
[362209010,1748103046420,-654.77,0.00019589,2]
[362209011,1748103046429,-922.77,0.00019589,2]
[362209012,1748103046439,-459.81,0.00019589,2]
[362209013,1748103046448,-477.73,0.00019589,2]
[362209014,1748103046457,-430.0,0.00019589,2]
[362209015,1748103046467,-430.0,0.00019589,2]
[362209016,1748103046476,-365.12,0.00019589,2]
[362209017,1748103046486,-440.75,0.00019589,2]
[362209018,1748103046495,-478.49,0.00019589,2]
[362209019,1748103046504,-430.98,0.00019589,2]
[362209020,1748103046514,-3416.7,0.00019589,2]
[362209021,1748103046524,-430.0,0.00019589,2]
[362209022,1748103046533,-483.98,0.00019589,2]
[362209023,1748103046543,-587.69,0.00019589,2]
[362209024,1748103046552,-747.04,0.00019589,2]
[362209025,1748103046561,-235.2,0.00019589,2]
[362209026,1748103046570,-464.69,0.00019589,2]
[362209027,1748103046580,-431.85,0.00019589,2]
[362209028,1748103046589,-3110.04,0.00019589,2]
[362209029,1748103046599,-890.63,0.00019589,2]
[362209030,1748103046608,-154.16,0.00019589,2]
[362209031,1748103046617,-992.55,0.00019589,2]
[362209032,1748103046626,-996.99,0.00019589,2]
[362209033,1748103046635,-430.0,0.00019589,2]
[362209034,1748103046645,-430.0,0.00019589,2]
[362209035,1748103046654,-525.13,0.00019589,2]
[362209036,1748103046663,-1037.53,0.00019589,2]
[362209037,1748103046673,-1114.5,0.00019589,2]
[362209038,1748103046682,-611.52,0.00019589,2]
[362209039,1748103046691,-474.53,0.00019616,2]
[362209040,1748103046700,-1052.17,0.00019616,2]
[362209041,1748103046710,-289.36,0.00019616,2]
[362209042,1748103046719,-430.0,0.00019616,2]
[362209043,1748103046728,-689.57,0.00019616,2]
[362209044,1748103046738,-466.32,0.00019616,2]
[362209045,1748103046748,-654.77,0.00019616,2]
[362209046,1748103046758,-922.77,0.00019616,2]
[362209047,1748103046767,-459.81,0.00019616,2]
[362209048,1748103046776,-477.73,0.00019616,2]
[362209049,1748103046786,-430.0,0.00019616,2]
[362209050,1748103046795,-430.0,0.00019616,2]
[362209051,1748103046805,-440.75,0.00019616,2]
[362209052,1748103046815,-478.49,0.00019616,2]
[362209053,1748103046824,-430.98,0.00019616,2]
[362209054,1748103046834,-3416.7,0.00019616,2]
[362209055,1748103046844,-430.0,0.00019616,2]
[362209056,1748103046854,-483.98,0.00019616,2]
[362209057,1748103046864,-587.69,0.00019616,2]
[362209058,1748103046873,-747.04,0.00019616,2]
[362209059,1748103046882,-464.69,0.00019616,2]
[362209060,1748103046892,-431.85,0.00019616,2]
[362209061,1748103046902,-3110.04,0.00019616,2]
[362209062,1748103046923,-890.63,0.00019616,2]
[362209063,1748103046933,-992.55,0.00019616,2]
[362209064,1748103046943,-996.99,0.00019616,2]
[362209065,1748103046952,-430.0,0.00019616,2]
[362209066,1748103046963,-430.0,0.00019616,2]
[362209067,1748103046973,-525.13,0.00019616,2]
[362209068,1748103046983,-1037.53,0.00019616,2]
[362209069,1748103046993,-1114.5,0.00019616,2]
[362209070,1748103047003,-611.52,0.00019616,2]
[362209071,1748103047013,-474.53,0.00019643,2]
[362209072,1748103047023,-1052.17,0.00019643,2]
[362209073,1748103047033,-430.0,0.00019643,2]
[362209074,1748103047042,-689.57,0.00019643,2]
[362209075,1748103047052,-654.77,0.00019643,2]
[362209076,1748103047062,-922.77,0.00019643,2]
[362209077,1748103047072,-459.81,0.00019643,2]
[362209078,1748103047082,-477.73,0.00019643,2]
[362209079,1748103047091,-430.0,0.00019643,2]
[362209080,1748103047101,-430.0,0.00019643,2]
[362209081,1748103047111,-440.75,0.00019643,2]
[362209082,1748103047121,-478.49,0.00019643,2]
[362209083,1748103047133,-430.98,0.00019643,2]
[362209084,1748103047143,-3416.7,0.00019643,2]
[362209085,1748103047153,-430.0,0.00019643,2]
[362209086,1748103047163,-483.98,0.00019643,2]
[362209087,1748103047173,-587.69,0.00019643,2]
[362209088,1748103047182,-747.04,0.00019643,2]
[362209089,1748103047192,-464.69,0.00019643,2]
[362209090,1748103047202,-431.85,0.00019643,2]
[362209091,1748103047212,-3110.04,0.00019643,2]
[362209092,1748103047223,-890.63,0.00019643,2]
[362209093,1748103047232,-992.55,0.00019643,2]
[362209094,1748103047242,-996.99,0.00019643,2]
[362209095,1748103047252,-430.0,0.00019643,2]
[362209096,1748103047262,-430.0,0.00019643,2]
[362209097,1748103047272,-525.13,0.00019643,2]
[362209098,1748103047283,-1037.53,0.00019643,2]
[362209099,1748103047293,-1114.5,0.00019643,2]
[362209100,1748103047304,-611.52,0.00019643,2]
[362209101,1748103047313,-275.64695519,0.00019659,2]
[362209102,1748103047323,-474.53,0.00019671,2]
[362209103,1748103047332,-1052.17,0.00019671,2]
[362209104,1748103047342,-430.0,0.00019671,2]
[362209105,1748103047352,-689.57,0.00019671,2]
[362209106,1748103047362,-654.77,0.00019671,2]
[362209107,1748103047372,-922.77,0.00019671,2]
[362209108,1748103047382,-459.81,0.00019671,2]
[362209109,1748103047391,-477.73,0.00019671,2]
[362209110,1748103047400,-430.0,0.00019671,2]
[362209111,1748103047410,-198.16,0.00019671,2]
[362209112,1748103047419,-440.75,0.00019671,2]
[362209113,1748103047428,-478.49,0.00019671,2]
[362209114,1748103047439,-430.98,0.00019671,2]
[362209115,1748103047448,-3416.7,0.00019671,2]
[362209116,1748103047458,-430.0,0.00019671,2]
[362209117,1748103047468,-483.98,0.00019671,2]
[362209118,1748103047477,-587.69,0.00019671,2]
[362209119,1748103047487,-747.04,0.00019671,2]
[362209120,1748103047496,-464.69,0.00019671,2]
[362209121,1748103047506,-431.85,0.00019671,2]
[362209122,1748103047516,-3110.04,0.00019671,2]
[362209123,1748103047525,-890.63,0.00019671,2]
[362209124,1748103047534,-992.55,0.00019671,2]
[362209125,1748103047548,-996.99,0.00019671,2]
[362209126,1748103047558,-430.0,0.00019671,2]
[362209127,1748103047567,-430.0,0.00019671,2]
[362209128,1748103047577,-525.13,0.00019671,2]
[362209129,1748103047587,-1037.53,0.00019671,2]
[362209130,1748103047596,-1114.5,0.00019671,2]
[362209131,1748103047606,-1129.28755345,0.00019694,2]
[362209132,1748103047616,-474.53,0.00019698,2]
[362209133,1748103047626,-1052.17,0.00019698,2]
[362209134,1748103047635,-430.0,0.00019698,2]
[362209135,1748103047645,-689.57,0.00019698,2]
[362209136,1748103047654,-654.77,0.00019698,2]
[362209137,1748103047664,-922.77,0.00019698,2]
[362209138,1748103047673,-459.81,0.00019698,2]
[362209139,1748103047683,-477.73,0.00019698,2]
[362209140,1748103047693,-430.0,0.00019698,2]
[362209141,1748103047702,-440.75,0.00019698,2]
[362209142,1748103047712,-478.49,0.00019698,2]
[362209143,1748103047722,-430.98,0.00019698,2]
[362209144,1748103047731,-3416.7,0.00019698,2]
[362209145,1748103047741,-430.0,0.00019698,2]
[362209146,1748103047751,-483.98,0.00019698,2]
[362209147,1748103047760,-587.69,0.00019698,2]
[362209148,1748103047770,-747.04,0.00019698,2]
[362209149,1748103047779,-464.69,0.00019698,2]
[362209150,1748103047789,-431.85,0.00019698,2]
[362209151,1748103047903,-3110.04,0.00019698,2]
[362209152,1748103047913,-890.63,0.00019698,2]
[362209153,1748103047922,-992.55,0.00019698,2]
[362209154,1748103047931,-996.99,0.00019698,2]
[362209155,1748103047940,-430.0,0.00019698,2]
[362209156,1748103047950,-430.0,0.00019698,2]
[362209157,1748103047959,-525.13,0.00019698,2]